fUST/lending_fUST_20240504
["ID","MTS","AMOUNT","RATE_DAILY","PERIOD"]
[325397246,1714819843363,-153.0,0.000203,2]
[325397248,1714819843372,-153.0,0.000203,2]
[325397249,1714819843381,-154.0166375,0.000203,2]
[325397250,1714819843390,-204.0119045,0.000203,2]
[325397251,1714819843398,-153.0,0.000203,2]
[325397252,1714819843407,-153.0,0.000203,2]
[325397253,1714819843418,-306.0,0.000203,2]
[325397254,1714819843427,-153.0,0.000203,2]
[325397255,1714819843438,-204.0615346,0.000203,2]
[325397256,1714819843447,-153.0,0.000203,2]
[325397257,1714819843456,-306.0,0.000203,2]
[325397258,1714819843465,-2248.138589,0.000203,2]
[325397259,1714819843474,-2248.138589,0.000203,2]
[325397260,1714819843483,-151.0,0.000203,2]
[325397261,1714819843491,-151.0,0.000203,2]
[325397262,1714819843500,-153.0,0.000203,2]
[325397263,1714819843509,-306.0,0.000203,2]
[325397264,1714819843520,-153.0,0.000203,2]
[325397265,1714819843530,-153.0,0.000203,2]
[325397267,1714819843539,-153.0,0.000203,2]
[325397268,1714819843548,-153.0,0.000203,2]
[325397269,1714819843557,-306.0,0.000203,2]
[325397270,1714819843566,-154.5932957,0.000203,2]
[325397271,1714819843575,-306.0,0.000203,2]
[325397272,1714819843585,-197.43637,0.000203,2]
[325397273,1714819843594,-374.738884,0.000203,2]
[325397274,1714819843603,-374.738884,0.000203,2]
[325397275,1714819843612,-153.0,0.000203,2]
[325397277,1714819843622,-153.0,0.000203,2]
[325397279,1714819843630,-153.0,0.000203,2]
[325397280,1714819843642,-204.0615346,0.000203,2]
[325397282,1714819843651,-153.0,0.000203,2]
[325397283,1714819843660,-373.00569,0.000203,2]
[325397284,1714819843671,-151.0,0.000203,2]
[325397285,1714819843680,-373.00569,0.000203,2]
[325397286,1714819843689,-151.0,0.000203,2]
[325397287,1714819843698,-153.0,0.000203,2]
[325397288,1714819843708,-431.8179084,0.000203,2]
[325397289,1714819843717,-204.0615346,0.000203,2]
[325397290,1714819843727,-151.0,0.000203,2]
[325397291,1714819843736,-151.0,0.000203,2]
[325397292,1714819843746,-1402.560126,0.000203,2]
[325397293,1714819843755,-1402.560126,0.000203,2]
[325397294,1714819843764,-306.0,0.000203,2]
[325397295,1714819843773,-1402.560126,0.000203,2]
[325397296,1714819843783,-1402.560126,0.000203,2]
[325397297,1714819843792,-651.046212,0.000203,2]
[325397298,1714819843801,-651.046212,0.000203,2]
[325397299,1714819843810,-151.0,0.000203,2]
[325397300,1714819843819,-151.0,0.000203,2]
[325397301,1714819843828,-651.046212,0.000203,2]
[325397302,1714819843838,-651.046212,0.000203,2]
[325397303,1714819843847,-151.0,0.000203,2]
[325397304,1714819843856,-151.0,0.000203,2]
[325397305,1714819843865,-393.3289929,0.000203,2]
[325397306,1714819843874,-204.0615346,0.000203,2]
[325397307,1714819843883,-306.0,0.000203,2]
[325397308,1714819843892,-151.0,0.000203,2]
[325397309,1714819843902,-266.827859,0.000203,2]
[325397310,1714819843911,-624.081327,0.000203,2]
[325397311,1714819843922,-624.081327,0.000203,2]
[325397312,1714819843931,-151.0,0.000203,2]
[325397313,1714819843940,-417.6279903,0.000203,2]
[325397314,1714819843949,-153.0,0.000203,2]
[325397315,1714819843958,-153.0,0.000203,2]
[325397316,1714819843967,-151.0,0.000203,2]
[325397317,1714819843977,-1205.147235,0.000203,2]
[325397318,1714819843986,-1205.147235,0.000203,2]
[325397319,1714819844098,-153.0,0.000203,2]
[325397320,1714819844107,-853.118244,0.000203,2]
[325397321,1714819844117,-306.0,0.000203,2]
[325397322,1714819844126,-407.7756585,0.000203,2]
[325397323,1714819844136,-853.118244,0.000203,2]
[325397324,1714819844146,-151.0,0.000203,2]
[325397325,1714819844155,-151.0,0.000203,2]
[325397326,1714819844166,-1676.622632,0.000203,2]
[325397327,1714819844175,-153.0,0.000203,2]
[325397328,1714819844184,-204.0615346,0.000203,2]
[325397329,1714819844193,-1676.622632,0.000203,2]
[325397330,1714819844203,-306.942143,0.000203,2]
[325397331,1714819844212,-1479.826058,0.000203,2]
[325397332,1714819844221,-1381.01051584,0.00020319,2]
[325397333,1714819844231,-151.0,0.00020319,2]
[325397334,1714819844242,-622.94783,0.00020329,2]
[325397335,1714819844254,-151.0,0.00020369,2]
[325397336,1714819844263,-192.666848,0.00020369,2]
[325397337,1714819844273,-192.666848,0.00020369,2]
[325397338,1714819844284,-374.738884,0.00020369,2]
[325397339,1714819844293,-374.738884,0.00020369,2]
[325397340,1714819844303,-151.0,0.00020369,2]
[325397341,1714819844312,-624.081327,0.00020369,2]
[325397342,1714819844323,-624.081327,0.00020369,2]
[325397343,1714819844333,-151.0,0.00020369,2]
[325397344,1714819844343,-151.0,0.00020369,2]
[325397345,1714819844354,-1205.147235,0.00020369,2]
[325397346,1714819844363,-1205.147235,0.00020369,2]
[325397347,1714819844372,-853.118244,0.00020369,2]
[325397348,1714819844381,-853.118244,0.00020369,2]
[325397349,1714819844390,-151.0,0.00020369,2]
[325397350,1714819844399,-151.0,0.00020369,2]
[325397351,1714819844408,-1676.622632,0.00020369,2]
[325397352,1714819844420,-1676.622632,0.00020369,2]
[325397353,1714819844429,-622.94783,0.00020386,2]
[325397354,1714819844438,-153.7952465,0.000204,2]
[325397355,1714819844447,-218.23091185,0.00020432,2]
[325397356,1714819844456,-1215.59712732,0.00020432,2]
[325397357,1714819844465,-595.08736183,0.00020439,2]
[325397358,1714819844474,-470.946102,0.00020442,2]
[325397359,1714819844483,-622.94783,0.00020443,2]
[325397360,1714819844492,-2248.138589,0.00020443,2]
[325397361,1714819844501,-2248.138589,0.00020443,2]
[325397362,1714819844511,-22.62553076,0.00020443,2]
[325397363,1714819844655,-128.37446924,0.00020443,2]
[325397364,1714819844664,-151.0,0.00020443,2]
[325397365,1714819844673,-373.00569,0.00020443,2]
[325397366,1714819844683,-151.0,0.00020443,2]
[325397367,1714819844692,-373.00569,0.00020443,2]
[325397368,1714819844701,-151.0,0.00020443,2]
[325397369,1714819844709,-151.0,0.00020443,2]
[325397370,1714819844718,-1298.11415076,0.00020443,2]
[325397400,1714819848207,-204.0119045,0.000203,2]
[325397401,1714819848216,-276.95746894,0.000203,2]
[325397402,1714819848228,-1202.86858906,0.000203,2]
[325397403,1714819848238,-104.44597524,0.00020443,2]
[325397405,1714819848251,-1402.560126,0.00020443,2]
[325397407,1714819848261,-349.9524597,0.00020443,2]
[325397419,1714819851083,155.74331128,9.999e-05,2]
[325397420,1714819998101,379.70928376,9.999e-05,2]
[325397422,1714820312394,480.84782884,0.00019178,2]
[325397423,1714820314055,157.36241004,0.00019178,2]
[325397424,1714820401228,165.144884,0.00019178,2]
[325397444,1714820910124,2000.0,0.0002,2]
[325397447,1714820983153,2000.0,0.0002,2]
[325397472,1714821033074,-1102.12641378,0.00020013,2]
[325397473,1714821033083,-5000.0,0.00020014,2]
[325397474,1714821033092,-1000.0,0.00020015,2]
[325397475,1714821033101,-1000.0,0.00020019,2]
[325397476,1714821033111,-1000.0,0.00020021,2]
[325397477,1714821033119,-1000.0,0.00020087,2]
[325397478,1714821033129,-626.3,0.00020089,14]
[325397479,1714821033138,-257.81979267,0.000202,2]
[325397480,1714821033148,-1000.0,0.00020299,2]
[325397481,1714821033157,-154.93716643,0.00020367,2]
[325397482,1714821033167,-293.0,0.000204,2]
[325397483,1714821033176,-592.443987,0.000204,2]
[325397485,1714821033186,-39976.59276282,0.00020442,2]
[325397610,1714821038896,-871.9,0.00020089,14]
[325397611,1714821038905,-19282.82626305,0.00020442,2]
[325397613,1714821038915,-263.1345904,0.00020467,2]
[325397614,1714821038924,-270.18241489,0.00020468,2]
[325397615,1714821038934,-1000.0,0.00020468,2]
[325397616,1714821038943,-154.82968734,0.00020469,2]
[325397617,1714821038952,-154.93716643,0.00020469,2]
[325397618,1714821038962,-626.3,0.0002049,14]
[325397619,1714821038971,-871.9,0.0002049,14]
[325397620,1714821038980,-990.89702146,0.000205,2]
[325397621,1714821038990,-596.52974313,0.000205,2]
[325397622,1714821039071,-22.45793687,0.000205,2]
[325397623,1714821039080,-153.0,0.00020521,2]
[325397624,1714821039090,-3000.0,0.00020547,2]
[325397625,1714821039099,-856.54555385,0.00020547,2]
[325397626,1714821039108,-618.98768,0.0002055,2]
[325397627,1714821039117,-223.6823407,0.00020559,2]
[325397629,1714821039128,-186.38735591,0.00020561,2]
[325397631,1714821039138,-154.93716643,0.00020571,2]
[325397633,1714821039147,-618.98769,0.000206,2]
[325397635,1714821039156,-618.98768,0.0002065,2]
[325397636,1714821039165,-404.36,0.00020653,3]
[325397637,1714821039174,-351.04739585,0.00020658,2]
[325397638,1714821039185,-296.78148817,0.00020658,2]
[325397639,1714821039194,-188.25277873,0.00020659,2]
[325397640,1714821039203,-200.93667899,0.00020659,2]
[325397641,1714821039214,-332.35069474,0.00020659,2]
[325397642,1714821039223,-18.29871361,0.00020659,2]
[325397663,1714821042736,-175.49862982,0.00020659,2]
[325397665,1714821042748,-243.43438083,0.00020659,2]
[325397667,1714821042763,-254.13978558,0.00020659,2]
[325397669,1714821042777,-400.0,0.00020659,2]
[325397671,1714821042790,-234.31080869,0.00020659,2]
[325397673,1714821042803,-167.10784225,0.00020659,2]
[325397675,1714821042815,-156.06290913,0.00020659,2]
[325397677,1714821042827,-267.03630981,0.00020659,2]
[325397679,1714821042839,-155.72315419,0.00020659,2]
[325397681,1714821042851,-281.38292835,0.00020659,2]
[325397682,1714821042862,-301.01592841,0.00020659,2]
[325397683,1714821042875,-184.97500647,0.00020659,2]
[325397684,1714821042888,-211.9123453,0.00020659,2]
[325397685,1714821042901,-314.36756752,0.0002066,2]
[325397686,1714821042913,-290.28091176,0.0002066,2]
[325397687,1714821042926,-250.32130335,0.00020661,2]
[325397688,1714821042939,-212.86496058,0.00020663,2]
[325397689,1714821042952,-250.08618478,0.00020663,2]
[325397690,1714821042964,-244.95688914,0.00020663,2]
[325397691,1714821042976,-156.60293976,0.00020663,2]
[325397692,1714821042990,-154.84504687,0.00020663,2]
[325397693,1714821043004,-200.62153397,0.00020663,2]
[325397694,1714821043016,-1995.81417437,0.00020663,2]
[325397695,1714821043028,-204.87882246,0.00020663,2]
[325397696,1714821043039,-227.62198981,0.00020663,2]
[325397697,1714821043050,-154.95189488,0.00020663,2]
[325397698,1714821043059,-208.51700368,0.00020663,2]
[325397699,1714821043069,-251.47093614,0.00020663,2]
[325397700,1714821043078,-260.49968797,0.00020663,2]
[325397701,1714821043087,-335.37825074,0.00020663,2]
[325397702,1714821043097,-307.63521625,0.00020663,2]
[325397703,1714821043107,-275.23762302,0.00020663,2]
[325397704,1714821043116,-174.72724539,0.00020663,2]
[325397728,1714821043326,-187.20118903,0.00020663,2]
[325397730,1714821043338,-159.12249495,0.00020663,2]
[325397732,1714821043348,-155.25026412,0.00020663,2]
[325397735,1714821043358,-255.13688453,0.00020663,2]
[325397738,1714821043368,-1853.49185713,0.00020663,2]
[325397741,1714821043377,-261.15085077,0.00020663,2]
[325397744,1714821043389,-171.72456816,0.00020663,2]
[325397746,1714821043399,-1184.25149599,0.00020663,2]
[325397749,1714821043409,-184.12184632,0.00020663,2]
[325397752,1714821043420,-226.6581521,0.00020663,2]
[325397755,1714821043431,-155.60656294,0.00020663,2]
[325397757,1714821043442,-359.45320568,0.00020663,2]
[325397759,1714821043453,-155.76071258,0.00020663,2]
[325397761,1714821043463,-293.5536121,0.00020663,2]
[325397763,1714821043473,-1398.84794854,0.00020663,2]
[325397765,1714821043483,-171.06273303,0.00020663,2]
[325397767,1714821043494,-368.0330138,0.00020663,2]
[325397769,1714821043505,-412.69431169,0.00020663,2]
[325397774,1714821043516,-307.55903547,0.00020663,2]
[325397776,1714821043526,-340.30285018,0.00020663,2]
[325397778,1714821043537,-329.98777852,0.00020663,2]
[325397780,1714821043547,-154.93716643,0.00020673,2]
[325397782,1714821043558,-618.98769,0.000207,2]
[325397784,1714821043569,-153.0,0.00020709,2]
[325397786,1714821043578,-153.0,0.00020709,2]
[325397787,1714821043589,-153.0,0.00020709,2]
[325397788,1714821043602,-153.0,0.00020709,2]
[325397789,1714821043612,-10745.65153154,0.0002071,2]
[325397790,1714821043621,-255.748417,0.0002071,2]
[325397792,1714821043631,-618.98768,0.0002075,2]
[325397794,1714821043643,-189.45958247,0.00020769,2]
[325397796,1714821043652,-3052.13238877,0.0002077,2]
[325397798,1714821043662,-151.0,0.0002077,2]
[325397799,1714821043671,-151.0,0.0002077,2]
[325397800,1714821043680,-151.0,0.0002077,2]
[325397801,1714821043690,-1124.069294,0.0002077,2]
[325397802,1714821043699,-151.0,0.0002077,2]
[325397803,1714821043709,-1124.069294,0.0002077,2]
[325397804,1714821043718,-262.317218,0.0002077,2]
[325397805,1714821043726,-262.317218,0.0002077,2]
[325397806,1714821043736,-261.103983,0.0002077,2]
[325397807,1714821043745,-151.0,0.0002077,2]
[325397808,1714821043755,-261.103983,0.0002077,2]
[325397809,1714821043764,-151.0,0.0002077,2]
[325397810,1714821043773,-151.0,0.0002077,2]
[325397811,1714821043783,-981.792088,0.0002077,2]
[325397812,1714821043792,-981.792088,0.0002077,2]
[325397813,1714821043801,-151.0,0.0002077,2]
[325397814,1714821043811,-151.0,0.0002077,2]
[325397815,1714821043820,-503.339347,0.0002077,2]
[325397816,1714821043829,-503.339347,0.0002077,2]
[325397817,1714821043838,-55184.78399162,0.0002077,2]
[325397818,1714821043857,-320.765,0.0002077,2]
[325397820,1714821044092,-19995.26374962,0.0002077,2]
[325397859,1714821083183,1103.68235674,9.999e-05,2]
[325397861,1714821101978,158.07345455,9.999e-05,2]
[325397866,1714821177581,24900.0,0.00019767,2]
[325397867,1714821224874,520.64017373,0.000189,2]
[325397868,1714821248049,241.38725,0.00019705,2]
[325397874,1714821429208,412.46510919,9.999e-05,2]
[325397875,1714821429578,469.23588945,9.999e-05,2]
[325397876,1714821432123,1314.01181236,0.0001,2]
[325397877,1714821435130,154.7215013,9.999e-05,2]
[325397878,1714821437001,550.42296487,9.999e-05,2]
[325397879,1714821438321,583.90234602,9.999e-05,2]
[325397880,1714821440861,155.12509203,0.00019705,2]
[325397881,1714821440914,13093.00247232,0.00019705,2]
[325397882,1714821444209,527.23402412,9.999e-05,2]
[325397883,1714821446910,1622.84993563,9.999e-05,2]
[325397884,1714821447071,291.90695137,9.999e-05,2]
[325397885,1714821453062,1092.31080328,9.999e-05,2]
[325397886,1714821464368,154.7215013,9.999e-05,2]
[325397887,1714821481716,280.95378719,9.999e-05,2]
[325397888,1714821485008,793.30130103,9.999e-05,2]
[325397889,1714821495623,280.95378719,9.999e-05,2]
[325397890,1714821517619,280.95378719,9.999e-05,2]
[325397891,1714821525975,347.09344915,0.000189,2]
[325397892,1714821533665,223.34671065,9.999e-05,2]
[325397893,1714821606576,-871.9,0.0002089,14]
[325397894,1714821608721,732.9,0.00019898,14]
[325397895,1714821609322,732.9,0.00020307,14]
[325397896,1714821609898,732.9,0.00020715,14]
[325397897,1714821615857,-732.9,0.00021124,14]
[325397898,1714821636161,653.9,0.00019898,14]
[325397899,1714821636924,653.9,0.00020307,14]
[325397900,1714821637480,653.9,0.00020715,14]
[325397901,1714821638044,653.9,0.00021124,14]
[325397902,1714821700406,16696.1814807,0.00019328,2]
[325397903,1714821705456,412.46510919,0.00019327,2]
[325397904,1714821782407,565.42105856,9.999e-05,2]
[325397905,1714821808485,158.07345455,9.999e-05,2]
[325397906,1714821809615,19646.42775471,0.0002,2]
[325397908,1714821827132,231.39563277,0.000189,2]
[325397909,1714822040091,-692.91853361,0.00020206,2]
[325397910,1714822040112,-5464.74132977,0.00020298,2]
[325397911,1714822040132,-5000.0,0.00020299,2]
[325397912,1714822040152,-195.54686155,0.000203,2]
[325397913,1714822040171,-11394.29327507,0.000203,2]
[325397915,1714822068960,241.38725,0.00019301,2]
[325397916,1714822076891,-6285.57,0.00020294,2]
[325397917,1714822128277,300.935027,0.000189,2]
[325397918,1714822133670,480.0086355,0.00019299,2]
[325397920,1714822182969,224.0386143,0.00019299,2]
[325397921,1714822198968,224.0386143,0.00019299,2]
[325397923,1714822208687,488.6,0.00019829,14]
[325397924,1714822209967,488.6,0.00020244,14]
[325397925,1714822210596,488.6,0.00020659,14]
[325397926,1714822211174,488.6,0.00021074,14]
[325397927,1714822213752,165.144884,0.00019178,2]
[325397928,1714822214970,224.0386143,0.00019299,2]
[325397929,1714822227194,150.0,0.000265,120]
[325397930,1714822230981,224.0386143,0.00019299,2]
[325397967,1714822232860,-7878.87670671,0.00020285,2]
[325397969,1714822232869,-67474.04238408,0.00020286,2]
[325397971,1714822232879,-20210.54550558,0.00020287,2]
[325397972,1714822232888,-5814.10771169,0.00020287,2]
[325397974,1714822232898,-15683.13964121,0.00020287,2]
[325397976,1714822232908,-5464.74132977,0.00020288,2]
[325397977,1714822232924,-734.75094252,0.00020296,2]
[325397978,1714822232940,-734.75094252,0.00020296,2]
[325397979,1714822232959,-734.75094252,0.00020296,2]
[325397980,1714822232970,-734.75094252,0.00020296,2]
[325397981,1714822232979,-734.75094252,0.00020296,2]
[325397982,1714822232989,-734.75094252,0.00020296,2]
[325397983,1714822233000,-619.44462,0.000203,2]
[325397984,1714822233009,-289.71251599,0.00020304,2]
[325397985,1714822233019,-619.44462,0.00020317,2]
[325397986,1714822233028,-173.25,0.00020317,2]
[325397987,1714822233042,-564.94459798,0.00020318,2]
[325397988,1714822233052,-157.66687376,0.00020319,2]
[325397989,1714822233061,-692.91853358,0.00020322,2]
[325397990,1714822233070,-191.13903624,0.00020324,2]
[325397991,1714822233080,-619.44462,0.00020333,2]
[325397992,1714822233089,-619.44462,0.0002035,2]
[325397993,1714822233097,-619.44463,0.00020367,2]
[325397994,1714822233107,-619.44462,0.00020383,2]
[325397995,1714822233116,-619.44462,0.000204,2]
[325397996,1714822233125,-27.23103406,0.00020417,2]
[325397997,1714822236268,435.9,0.00019829,14]
[325397998,1714822236863,435.9,0.00020244,14]
[325398013,1714822237439,435.9,0.00020659,14]
[325398059,1714822238000,435.9,0.00021074,14]
[325398065,1714822238046,-637.12,0.00020286,2]
[325398068,1714822238059,-336.75469564,0.00020286,2]
[325398071,1714822238069,-500.0,0.00020286,2]
[325398073,1714822238078,-247.8219844,0.00020286,2]
[325398075,1714822238087,-592.21358594,0.00020417,2]
[325398077,1714822238097,-12067.70892897,0.00020431,2]
[325398079,1714822238113,-3562.87706487,0.00020431,2]
[325398142,1714822240167,-41721.56669141,0.00020431,2]
[325398143,1714822240177,-619.44463,0.00020433,2]
[325398144,1714822240186,-692.91853358,0.00020438,2]
[325398145,1714822240196,-619.44462,0.0002045,2]
[325398146,1714822240205,-619.44462,0.00020467,2]
[325398147,1714822240215,-619.44462,0.00020483,2]
[325398148,1714822240224,-619.44463,0.000205,2]
[325398149,1714822240233,-692.91853358,0.00020554,2]
[325398150,1714822240243,-500.0,0.00020662,2]
[325398151,1714822240253,-692.91853358,0.0002067,2]
[325398152,1714822240262,-2000.0,0.0002067,2]
[325398153,1714822240271,-55555.0,0.0002067,3]
[325398154,1714822240281,-1324.57397978,0.00020768,2]
[325398155,1714822240292,-154.905112,0.00020768,2]
[325398156,1714822240301,-154.7215013,0.00020768,2]
[325398157,1714822240311,-154.7215013,0.00020768,2]
[325398158,1714822240321,-522.27929623,0.00020768,2]
[325398159,1714822240331,-154.73694719,0.00020768,2]
[325398160,1714822240341,-309.41211698,0.00020768,2]
[325398161,1714822240351,-475.3846747,0.00020768,2]
[325398162,1714822240362,-200.15284538,0.00020768,2]
[325398163,1714822240371,-154.79876161,0.00020768,2]
[325398164,1714822240381,-235.89828702,0.00020768,2]
[325398165,1714822240390,-700.80098133,0.00020768,2]
[325398166,1714822240400,-815.53341736,0.00020768,2]
[325398167,1714822240410,-309.62844586,0.00020768,2]
[325398168,1714822240419,-513.62826991,0.00020768,2]
[325398169,1714822240429,-409.39448055,0.00020768,2]
[325398170,1714822240438,-551.84117837,0.00020768,2]
[325398171,1714822240448,-468.86536832,0.00020768,2]
[325398172,1714822240457,-1002.67842316,0.00020768,2]
[325398173,1714822240467,-549.76744305,0.00020768,2]
[325398174,1714822240476,-184.17041407,0.00020768,2]
[325398175,1714822240486,-583.54371118,0.00020768,2]
[325398176,1714822240496,-526.81613123,0.00020768,2]
[325398177,1714822240506,-1621.83475447,0.00020768,2]
[325398178,1714822240515,-1046.13973102,0.00020768,2]
[325398179,1714822240525,-203.53691893,0.00020768,2]
[325398180,1714822240534,-1907.45188905,0.00020768,2]
[325398181,1714822240545,-756.88966805,0.00020768,2]
[325398182,1714822240554,-155.32673225,0.00020768,2]
[325398183,1714822240564,-254.3561742,0.00020768,2]
[325398184,1714822240573,-609.54409027,0.00020769,2]
[325398185,1714822240582,-891.13661831,0.00020769,2]
[325398186,1714822240592,-525.07533493,0.00020769,4]
[325398187,1714822240602,-190.9846504,0.00020769,2]
[325398188,1714822240611,-51435.93947603,0.0002077,2]
[325398189,1714822240621,-116901.1951106,0.0002077,2]
[325398190,1714822240630,-151.0,0.0002077,2]
[325398191,1714822240639,-151.0,0.0002077,2]
[325398192,1714822240649,-151.0,0.0002077,2]
[325398193,1714822240659,-151.0,0.0002077,2]
[325398194,1714822240668,-1011.662365,0.0002077,2]
[325398195,1714822240678,-1011.662365,0.0002077,2]
[325398196,1714822240687,-1011.662365,0.0002077,2]
[325398197,1714822240697,-1011.662365,0.0002077,2]
[325398198,1714822240707,-151.0,0.0002077,2]
[325398199,1714822240716,-151.0,0.0002077,2]
[325398200,1714822240725,-151.0,0.0002077,2]
[325398201,1714822240735,-236.085497,0.0002077,2]
[325398202,1714822240744,-236.085497,0.0002077,2]
[325398203,1714822240753,-234.993585,0.0002077,2]
[325398204,1714822240762,-151.0,0.0002077,2]
[325398205,1714822240771,-234.993585,0.0002077,2]
[325398206,1714822240780,-151.0,0.0002077,2]
[325398207,1714822240789,-883.612879,0.0002077,2]
[325398208,1714822240799,-883.612879,0.0002077,2]
[325398209,1714822240808,-151.0,0.0002077,2]
[325398210,1714822240818,-276.172423,0.0002077,2]
[325398211,1714822240828,-453.005412,0.0002077,2]
[325398212,1714822240838,-453.005412,0.0002077,2]
[325398213,1714822240847,-151.0,0.0002077,2]
[325398214,1714822240856,-499.265062,0.0002077,2]
[325398215,1714822240866,-499.265062,0.0002077,2]
[325398216,1714822240875,-151.0,0.0002077,2]
[325398217,1714822240885,-1278.396366,0.0002077,2]
[325398218,1714822240895,-1278.396366,0.0002077,2]
[325398219,1714822240904,-682.494596,0.0002077,2]
[325398220,1714822240913,-682.494596,0.0002077,2]
[325398221,1714822240923,-151.0,0.0002077,2]
[325398222,1714822240935,-151.0,0.0002077,2]
[325398223,1714822240946,-1341.298106,0.0002077,2]
[325398224,1714822240957,-1341.298106,0.0002077,2]
[325398225,1714822240968,-1341.298106,0.0002077,2]
[325398226,1714822240977,-1341.298106,0.0002077,2]
[325398227,1714822240986,-1331.843452,0.0002077,2]
[325398228,1714822240998,-156.30557787,0.00020771,2]
[325398229,1714822241007,-378.89891027,0.00020771,2]
[325398230,1714822241017,-162.27453527,0.00020873,2]
[325398231,1714822241027,-521.12221189,0.00020913,2]
[325398232,1714822241040,-214.889,0.00020964,2]
[325398233,1714822241051,-41988.45328089,0.00021,2]
[325398234,1714822241061,-2003.95773825,0.00021,5]
[325398235,1714822241070,-8477.57589048,0.00021,2]
[325398264,1714822247317,-2382.85189368,0.00020769,2]
[325398265,1714822247328,-4677.96147102,0.00020769,2]
[325398266,1714822247337,-1331.843452,0.0002077,2]
[325398267,1714822247346,-15683.13964121,0.00020913,2]
[325398268,1714822247355,-7340.19700144,0.00021,2]
[325398269,1714822248985,224.0386143,0.00019299,2]
[325398270,1714822266990,224.0386143,0.00019299,2]
[325398271,1714822282985,224.0386143,0.00019299,2]
[325398272,1714822285941,-488.6,0.00021489,14]
[325398273,1714822285962,-435.9,0.00021489,14]
[325398274,1714822302986,224.0386143,0.00019299,2]
[325398275,1714822325006,224.0386143,0.00019299,2]
[325398276,1714822341132,224.0386143,0.00019299,2]
[325398277,1714822343974,150.0,0.00025,60]
[325398278,1714822348804,92879.60936192,0.0002,2]
[325398279,1714822348831,30227.25606879,0.0002,2]
[325398280,1714822353722,5939.62617792,0.0002,2]
[325398281,1714822358975,224.0386143,0.00019299,2]
[325398282,1714822361327,155.05078052,0.0002,2]
[325398283,1714822374974,224.0386143,0.00019299,2]
[325398284,1714822390983,224.0386143,0.00019299,2]
[325398285,1714822410992,224.0386143,0.00019299,2]
[325398286,1714822418332,-488.6,0.00021904,14]
[325398287,1714822418353,-435.9,0.00021904,14]
[325398288,1714822429463,200.62335133,0.000189,2]
[325398289,1714822431002,224.0386143,0.00019299,2]
[325398290,1714822451002,224.0386143,0.00019299,2]
[325398291,1714822460329,-488.6,0.00022319,14]
[325398292,1714822460349,-435.9,0.00022319,14]
[325398293,1714822471009,224.0386143,0.00019299,2]
[325398294,1714822476462,1976.5811144,0.00019845,2]
[325398295,1714822487005,224.0386143,0.00019299,2]
[325398296,1714822509010,267.47028426,0.00019299,2]
[325398297,1714822524148,405.3518062,0.00019845,2]
[325398298,1714822527427,-488.6,0.00022734,14]
[325398299,1714822527446,-435.9,0.00022734,14]
[325398300,1714822527469,-620.3,0.00023066,14]
[325398301,1714822527490,-150.0,0.00023066,14]
[325398302,1714822527511,-488.6,0.00023149,14]
[325398303,1714822527532,-435.9,0.00023149,14]
[325398304,1714822548393,-488.6,0.00023564,14]
[325398305,1714822548414,-435.9,0.00023564,14]
[325398306,1714822548440,-371.295831,0.000238,11]
[325398307,1714822548462,-5600.0,0.000239,9]
[325398308,1714822548482,-4.904169,0.00023979,14]
[325398309,1714822563293,464.92090517,9.999e-05,2]
[325398310,1714822609954,154.7215013,9.999e-05,2]
[325398311,1714822640828,4770.93661249,0.0002,2]
[325398312,1714822684420,154.7215013,9.999e-05,2]
[325398313,1714822730898,235.02303797,0.000189,2]